{"text_format":"2","workbook":"xlsx","n_sheets":4,"sheets":["Schienenfahrzeuge","Vorlage für AZA","Beispiel Neubeschaffung","Beispiel Umrüstung"],"not_rendered":{"charts":0,"images":4,"macros":0,"external_links":0,"defined_names":16,"comments":0,"pivot_tables":0},"unopened":[],"bounds":{"document_bytes":16777216,"sheet_cells":100000,"run_cost":"one","rows_first":2000,"rows_last":500,"rows_between":2000,"halvings":0,"cell_chars":16384,"cell_head_chars":4096},"cells_cut":0,"cells_raw":0,"read":"whole","date_system":"1900"}

{"sheet":"Schienenfahrzeuge","index":0,"n_rows":28,"n_cols":12,"rows_kept":28,"cut":false,"hidden":false,"merged":[[4,0,4,7]]}
["Ermittlung der förderfähigen Ausgaben (EfA) für Schienenfahrzeuge",{"$nulls":9},"ja","nein"]
[]
["Antragsteller ist vorsteuerabzugsberechtigt [Auswahlbox]:"]
["Hinweise:"]
["1. Geben Sie zuerst oben an, ob Sie vorsteuerabzugsberechtigt sind.\n2. Die Registerkarte 'Vorlage für AZA' stellt Ihre Eingaben so dar, wie sie in das easyOnline-Formular eingetragen werden müssen.\n3. Reichen Sie bitte entsprechende Angebote für die zu beschaffenden Schienenfahrzeuge und die Referenzfahrzeuge ein. \n    Wenn kein Angebot für ein Referenzfahrzeug vorliegt, können für die folgenden Kategorien die folgende Netto-Beträge angeben werden:\n    Dieseltriebwagen (DMU) bis 140 Sitzplätze 4.800.000€\n    Dieseltriebwagen (DMU) bis 200 Sitzplätze 6.360.000€\n    Rangierlokomotiven bis 800kW 2.160.000€\n    Diesellokomotiven bis 2.500kW 3.181.000€\n4. Speichern Sie das ausgefüllte Arbeitsblatt als PDF und fügen Sie es dem Antrag bei (Bei easy-online unter \"Endfassung einreichen\").\n5. Grün unterlegte Felder sind Eingabefelder."]
[]
["Position","Typ Schienenfahrzeug",{"$f":"IF(D3=\"nein\",\"Bruttopreis\nSchienenfahrzeug laut beigefügtem Angebot\",IF(D3=\"ja\",\"Nettopreis\nSchienenfahrzeug laut beigefügtem Angebot\",\"Bitte wählen sie aus, ob sie zum Vorsteuerabzug berechtigt sind!\"))","v":"Bitte wählen sie aus, ob sie zum Vorsteuerabzug berechtigt sind!"},"Typ Referenzfahrzeug",{"$f":"IF(D3=\"nein\",\"Bruttopreis Referenzfahrzeug\nlaut beigefügtem Angebot\",IF(D3=\"ja\",\"Nettopreis Referenzfahrzeug\nlaut beigefügtem Angebot\",\"Bitte wählen sie aus, ob sie zum Vorsteuerabzug berechtigt sind!\"))","v":"Bitte wählen sie aus, ob sie zum Vorsteuerabzug berechtigt sind!"},{"$f":"IF(D3=\"nein\",\"Förderfähige Ausgaben pro Fahrzeug (brutto)\",IF(D3=\"ja\",\"Förderfähige Ausgaben pro Fahrzeug (netto)\",\"Bitte wählen sie aus, ob sie zum Vorsteuerabzug berechtigt sind!\"))","v":"Bitte wählen sie aus, ob sie zum Vorsteuerabzug berechtigt sind!"},"Anzahl zu beschaffender Fahrzeuge des Typs","Förderfähige Ausgaben ","Korrekturfeld PtJ"]
[1,{"$nulls":4},{"$f":"IF($D$3=\"\",\"\",IF(C8=\"\",\"\",C8-E8))","v":""},null,{"$f":"IF(F8=\"\",\"\",F8*G8)","v":""}]
[2,{"$nulls":4},{"$f":"IF($D$3=\"\",\"\",IF(C9=\"\",\"\",C9-E9))","v":""},null,{"$f":"IF(F9=\"\",\"\",F9*G9)","v":""}]
[3,{"$nulls":4},"",null,""]
[4,{"$nulls":4},"",null,""]
[5,{"$nulls":4},"",null,""]
[6,{"$nulls":4},"",null,""]
[7,{"$nulls":4},"",null,""]
[8,{"$nulls":4},"",null,""]
[9,{"$nulls":4},"",null,""]
[10,{"$nulls":4},"",null,""]
[11,{"$nulls":4},"",null,""]
[12,{"$nulls":4},"",null,""]
[13,{"$nulls":4},"",null,""]
[14,{"$nulls":4},"",null,""]
[15,{"$nulls":4},"",null,""]
[16,{"$nulls":4},"",null,""]
[17,{"$nulls":4},"",null,""]
[18,{"$nulls":4},"",null,""]
[19,{"$nulls":4},"",null,""]
[20,{"$nulls":4},"",null,""]
["Summe",{"$nulls":6},{"$f":"SUM(H8:H27)","v":0}]

{"sheet":"Vorlage für AZA","index":1,"n_rows":31,"n_cols":4,"rows_kept":31,"cut":false,"hidden":false,"merged":[]}
["Hinweis:"]
["Vorlage zum Übertragen der Daten aus dieser Tabelle in den AZA-Antrag in easy-Online. "]
["Bitte kopieren Sie die Bezeichung wie hier dargestellt in das easy-Online-Formular. "]
["Die Anzahl der zu beschaffenden Fahrzeuge muss ggf. auf die Anschaffungsjahre aufgeteilt werden."]
["Beachten Sie, dass die hier angegebene Summe mit den Gesamtmitteln im easy-Online-Antrag überein stimmen müssen."]
[{"$f":"IF(Schienenfahrzeuge!D3=\"nein\",\"Der Antragsteller ist nicht zum Vorsteuerabzug berechtigt.\",IF(Schienenfahrzeuge!D3=\"ja\",\"Der Antragsteller ist zum Vorsteuerabzug berechtigt.\",\"Bitte wählen sie aus, ob sie zum Vorsteuerabzug berechtigt sind!\"))","v":"Bitte wählen sie aus, ob sie zum Vorsteuerabzug berechtigt sind!"}]
[]
["Gesamtfinanzierung - Gegenstände und andere Investitionen von mehr als 800 € im Einzelfall"]
[]
["Bezeichnung","Preis € / Stück","Anzahl","F0833 Betrag €"]
[{"$f":"IF(Schienenfahrzeuge!$B8>\"\",Schienenfahrzeuge!B8,\"\")","v":""},{"$f":"IF(Schienenfahrzeuge!$B8>\"\",Schienenfahrzeuge!F8,\"\")","v":""},{"$f":"IF(Schienenfahrzeuge!$B8>\"\",Schienenfahrzeuge!G8,\"\")","v":""},{"$f":"IF(Schienenfahrzeuge!$B8>\"\",Schienenfahrzeuge!H8,\"\")","v":""}]
[{"$f":"IF(Schienenfahrzeuge!$B9>\"\",Schienenfahrzeuge!B9,\"\")","v":""},{"$f":"IF(Schienenfahrzeuge!$B9>\"\",Schienenfahrzeuge!F9,\"\")","v":""},{"$f":"IF(Schienenfahrzeuge!$B9>\"\",Schienenfahrzeuge!G9,\"\")","v":""},{"$f":"IF(Schienenfahrzeuge!$B9>\"\",Schienenfahrzeuge!H9,\"\")","v":""}]
[{"$f":"IF(Schienenfahrzeuge!$B10>\"\",Schienenfahrzeuge!B10,\"\")","v":""},{"$f":"IF(Schienenfahrzeuge!$B10>\"\",Schienenfahrzeuge!F10,\"\")","v":""},{"$f":"IF(Schienenfahrzeuge!$B10>\"\",Schienenfahrzeuge!G10,\"\")","v":""},{"$f":"IF(Schienenfahrzeuge!$B10>\"\",Schienenfahrzeuge!H10,\"\")","v":""}]
[{"$f":"IF(Schienenfahrzeuge!$B11>\"\",Schienenfahrzeuge!B11,\"\")","v":""},{"$f":"IF(Schienenfahrzeuge!$B11>\"\",Schienenfahrzeuge!F11,\"\")","v":""},{"$f":"IF(Schienenfahrzeuge!$B11>\"\",Schienenfahrzeuge!G11,\"\")","v":""},{"$f":"IF(Schienenfahrzeuge!$B11>\"\",Schienenfahrzeuge!H11,\"\")","v":""}]
[{"$f":"IF(Schienenfahrzeuge!$B12>\"\",Schienenfahrzeuge!B12,\"\")","v":""},{"$f":"IF(Schienenfahrzeuge!$B12>\"\",Schienenfahrzeuge!F12,\"\")","v":""},{"$f":"IF(Schienenfahrzeuge!$B12>\"\",Schienenfahrzeuge!G12,\"\")","v":""},{"$f":"IF(Schienenfahrzeuge!$B12>\"\",Schienenfahrzeuge!H12,\"\")","v":""}]
[{"$f":"IF(Schienenfahrzeuge!$B13>\"\",Schienenfahrzeuge!B13,\"\")","v":""},{"$f":"IF(Schienenfahrzeuge!$B13>\"\",Schienenfahrzeuge!F13,\"\")","v":""},{"$f":"IF(Schienenfahrzeuge!$B13>\"\",Schienenfahrzeuge!G13,\"\")","v":""},{"$f":"IF(Schienenfahrzeuge!$B13>\"\",Schienenfahrzeuge!H13,\"\")","v":""}]
[{"$f":"IF(Schienenfahrzeuge!$B14>\"\",Schienenfahrzeuge!B14,\"\")","v":""},{"$f":"IF(Schienenfahrzeuge!$B14>\"\",Schienenfahrzeuge!F14,\"\")","v":""},{"$f":"IF(Schienenfahrzeuge!$B14>\"\",Schienenfahrzeuge!G14,\"\")","v":""},{"$f":"IF(Schienenfahrzeuge!$B14>\"\",Schienenfahrzeuge!H14,\"\")","v":""}]
[{"$f":"IF(Schienenfahrzeuge!$B15>\"\",Schienenfahrzeuge!B15,\"\")","v":""},{"$f":"IF(Schienenfahrzeuge!$B15>\"\",Schienenfahrzeuge!F15,\"\")","v":""},{"$f":"IF(Schienenfahrzeuge!$B15>\"\",Schienenfahrzeuge!G15,\"\")","v":""},{"$f":"IF(Schienenfahrzeuge!$B15>\"\",Schienenfahrzeuge!H15,\"\")","v":""}]
[{"$f":"IF(Schienenfahrzeuge!$B16>\"\",Schienenfahrzeuge!B16,\"\")","v":""},{"$f":"IF(Schienenfahrzeuge!$B16>\"\",Schienenfahrzeuge!F16,\"\")","v":""},{"$f":"IF(Schienenfahrzeuge!$B16>\"\",Schienenfahrzeuge!G16,\"\")","v":""},{"$f":"IF(Schienenfahrzeuge!$B16>\"\",Schienenfahrzeuge!H16,\"\")","v":""}]
[{"$f":"IF(Schienenfahrzeuge!$B17>\"\",Schienenfahrzeuge!B17,\"\")","v":""},{"$f":"IF(Schienenfahrzeuge!$B17>\"\",Schienenfahrzeuge!F17,\"\")","v":""},{"$f":"IF(Schienenfahrzeuge!$B17>\"\",Schienenfahrzeuge!G17,\"\")","v":""},{"$f":"IF(Schienenfahrzeuge!$B17>\"\",Schienenfahrzeuge!H17,\"\")","v":""}]
[{"$f":"IF(Schienenfahrzeuge!$B18>\"\",Schienenfahrzeuge!B18,\"\")","v":""},{"$f":"IF(Schienenfahrzeuge!$B18>\"\",Schienenfahrzeuge!F18,\"\")","v":""},{"$f":"IF(Schienenfahrzeuge!$B18>\"\",Schienenfahrzeuge!G18,\"\")","v":""},{"$f":"IF(Schienenfahrzeuge!$B18>\"\",Schienenfahrzeuge!H18,\"\")","v":""}]
[{"$f":"IF(Schienenfahrzeuge!$B19>\"\",Schienenfahrzeuge!B19,\"\")","v":""},{"$f":"IF(Schienenfahrzeuge!$B19>\"\",Schienenfahrzeuge!F19,\"\")","v":""},{"$f":"IF(Schienenfahrzeuge!$B19>\"\",Schienenfahrzeuge!G19,\"\")","v":""},{"$f":"IF(Schienenfahrzeuge!$B19>\"\",Schienenfahrzeuge!H19,\"\")","v":""}]
[{"$f":"IF(Schienenfahrzeuge!$B20>\"\",Schienenfahrzeuge!B20,\"\")","v":""},{"$f":"IF(Schienenfahrzeuge!$B20>\"\",Schienenfahrzeuge!F20,\"\")","v":""},{"$f":"IF(Schienenfahrzeuge!$B20>\"\",Schienenfahrzeuge!G20,\"\")","v":""},{"$f":"IF(Schienenfahrzeuge!$B20>\"\",Schienenfahrzeuge!H20,\"\")","v":""}]
[{"$f":"IF(Schienenfahrzeuge!$B21>\"\",Schienenfahrzeuge!B21,\"\")","v":""},{"$f":"IF(Schienenfahrzeuge!$B21>\"\",Schienenfahrzeuge!F21,\"\")","v":""},{"$f":"IF(Schienenfahrzeuge!$B21>\"\",Schienenfahrzeuge!G21,\"\")","v":""},{"$f":"IF(Schienenfahrzeuge!$B21>\"\",Schienenfahrzeuge!H21,\"\")","v":""}]
[{"$f":"IF(Schienenfahrzeuge!$B22>\"\",Schienenfahrzeuge!B22,\"\")","v":""},{"$f":"IF(Schienenfahrzeuge!$B22>\"\",Schienenfahrzeuge!F22,\"\")","v":""},{"$f":"IF(Schienenfahrzeuge!$B22>\"\",Schienenfahrzeuge!G22,\"\")","v":""},{"$f":"IF(Schienenfahrzeuge!$B22>\"\",Schienenfahrzeuge!H22,\"\")","v":""}]
[{"$f":"IF(Schienenfahrzeuge!$B23>\"\",Schienenfahrzeuge!B23,\"\")","v":""},{"$f":"IF(Schienenfahrzeuge!$B23>\"\",Schienenfahrzeuge!F23,\"\")","v":""},{"$f":"IF(Schienenfahrzeuge!$B23>\"\",Schienenfahrzeuge!G23,\"\")","v":""},{"$f":"IF(Schienenfahrzeuge!$B23>\"\",Schienenfahrzeuge!H23,\"\")","v":""}]
[{"$f":"IF(Schienenfahrzeuge!$B24>\"\",Schienenfahrzeuge!B24,\"\")","v":""},{"$f":"IF(Schienenfahrzeuge!$B24>\"\",Schienenfahrzeuge!F24,\"\")","v":""},{"$f":"IF(Schienenfahrzeuge!$B24>\"\",Schienenfahrzeuge!G24,\"\")","v":""},{"$f":"IF(Schienenfahrzeuge!$B24>\"\",Schienenfahrzeuge!H24,\"\")","v":""}]
[{"$f":"IF(Schienenfahrzeuge!$B25>\"\",Schienenfahrzeuge!B25,\"\")","v":""},{"$f":"IF(Schienenfahrzeuge!$B25>\"\",Schienenfahrzeuge!F25,\"\")","v":""},{"$f":"IF(Schienenfahrzeuge!$B25>\"\",Schienenfahrzeuge!G25,\"\")","v":""},{"$f":"IF(Schienenfahrzeuge!$B25>\"\",Schienenfahrzeuge!H25,\"\")","v":""}]
[{"$f":"IF(Schienenfahrzeuge!$B26>\"\",Schienenfahrzeuge!B26,\"\")","v":""},{"$f":"IF(Schienenfahrzeuge!$B26>\"\",Schienenfahrzeuge!F26,\"\")","v":""},{"$f":"IF(Schienenfahrzeuge!$B26>\"\",Schienenfahrzeuge!G26,\"\")","v":""},{"$f":"IF(Schienenfahrzeuge!$B26>\"\",Schienenfahrzeuge!H26,\"\")","v":""}]
[{"$f":"IF(Schienenfahrzeuge!$B27>\"\",Schienenfahrzeuge!B27,\"\")","v":""},{"$f":"IF(Schienenfahrzeuge!$B27>\"\",Schienenfahrzeuge!F27,\"\")","v":""},{"$f":"IF(Schienenfahrzeuge!$B27>\"\",Schienenfahrzeuge!G27,\"\")","v":""},{"$f":"IF(Schienenfahrzeuge!$B27>\"\",Schienenfahrzeuge!H27,\"\")","v":""}]
[null,null,"Summe:",{"$f":"ROUND(SUM(D11:D30),0)","v":0}]

{"sheet":"Beispiel Neubeschaffung","index":2,"n_rows":59,"n_cols":6,"rows_kept":59,"cut":false,"hidden":false,"merged":[]}
["Fiktives Beispiel Schienenfahrzeugneubeschaffung"]
[]
[]
["Grobe Angaben zum Vorhaben"]
[]
["Antragssteller ",null,null,"vorsteuerabzugsberechtigt"]
["Beantragtes Schienenfahrzeug:",null,null,"HEMU Muster"]
["Anzahl",null,null,6]
["beantragte Förderquote:",null,null,0.4]
["beantragter KMU-Bonus",null,null,0.2]
{"$rows_empty":15}
["Berechnete Zuwendung"]
[]
["23.754.600 € * 60% = 13.832.760 € …. <15.000.000 €"]
[]
[]
["Angebot für das Schienenneufahrzeug"]
[]
["Angebot des Herstellers für \"HEMU Muster\" (100 Sitze, 6 Achsen)"]
[]
["Stückpreis"]
["Brutto:",null,null,9341500,"€"]
["Netto:",null,null,7850000,"€"]
[]
[]
["Angebot für das Schienenreferenzfahrzeug (konventioneller Antieb, nicht älter als 10 Jahre)"]
[]
["Aktuelles Angebot vom Hesteller für Dieseltriebzug siehe \"Angebot Diesel2018.pdf\" (100 Sitze, 6 Achsen)"]
[]
["Sückpreis"]
["Brutto",7781800,"€"]
["Netto",3890900,"€"]
[]
["Wenn kein aktuelles Angebot für ein Dieselreferenzfahrzeug beschafft werden kann, kann die Plausibilisierung"]
["auch anhand eines alten Angebots erfolgen (nicht älter als 10 Jahre!):"]
[]
["Angebot für Dieselreferenzfahrzeug \"Angebot Diesel2018\" (Datum der Ausstellung: 01.01.2018, 100 Sitze und 6 Achsen)"]
[]
["Stückpreis"]
["Brutto:",4343500]
["Netto:",3650000,null,"nach Preissteigerung*",null,3890900]
[]
["*Preissteigerung nach \"Index der Erzeugerpreise gewerblicher Produkte (Inlandsabsatz)\n"]
["nach dem Güterverzeichnis für Produktionsstatistiken\" (https://www.destatis.de/DE/Themen/Wirtschaft/Preise/Erzeugerpreisindex-gewerbliche-Produkte/_inhalt.html) "]
["bis zum Zeitpunkt der Antragsstellung: 6,6%"]

{"sheet":"Beispiel Umrüstung","index":3,"n_rows":49,"n_cols":8,"rows_kept":49,"cut":false,"hidden":false,"merged":[[48,0,48,12]]}
["Fiktives Beispiel Umrüstung"]
[]
[]
["Grobe Angaben zum Vorhaben"]
[]
["Antragssteller ",null,null,"vorsteuerabzugsberechtigt"]
["BeantragteUmrüstung",null,null,"Umrüstung Schienenfahrzeug mit "]
[null,null,null,"Dieselmotor auf einen Batterieantrieb"]
["Anzahl",null,null,1]
["beantragte Förderquote:",null,null,0.4]
["beantragter KMU-Bonus",null,null,0.1]
{"$rows_empty":14}
["Berechnete Zuwendung"]
[]
["2.070.000 € * 50% = 1.035.000 €"]
[]
[]
["Angebot für die Umrüstung 06/2023"]
[]
["Hinweis: es müssen die Mehrkosten für die Umrüstung auf einen alternativen Antrieb erkennbar sein."]
[]
["Angebot mit laufenden Nummern (ldf. Nr.)"]
[]
["Lfd. Nr.","Bezeichnung",null,null,"Preis",null,null,"nicht eindeutig förderfähig (muss plausibilisiert werden)"]
[1,"Demontage/Montage",null,null,550000]
[2,"Material",null,null,200000]
[3,"Traktionsbatterie",null,null,800000]
[4,"Traktionsumrichter",null,null,450000]
[5,"Anpassung der Einzelkomponenten",null,null,20000]
[6,"Personaleinsatz Umrüster 4 Monate",null,null,50000]
[{"$nulls":4},{"$f":" SUM(E38:E43)","v":2070000}]
[]
["Die lfd. Nr. 2 und 5 sind basierend auf dem Angebot nicht eindeutig dem Umweltschutz zuzuordenen."]
["In der Vorhabenbeschreibung erfolgt die Plausibilisierung dieser lfd. Nr. (Achtung in diesem Beispiel stark verkürzt!):"]
[]
["Um die Umrüstung vorzunehmen, muss der Dieselmotor demontiert werden (Lfd. Nr. 1: 350.000€, \"Angebot Demontage.pdf\"). Die hierzu notwendigen Arbeiten werden mit 2 Werkzeugwägen (Lfd. 2: 5.000€, \"Angebot Werkzeugwagen.pdf\") und  Spezialwerkzeug (Lfd. 2: 195.000€, \"Auflistung spezWerkzeug.pdf\")  durchgeführt. [...] Die für den alternativen Antrieb notwendigen Komponenten Traktionsumrichter und Traktionsbatterie (\"Angebot Batterie.pdf\" und \"Angebot Umrichter.pdf\") werden beschafft. Für die Monatge (ldf. Nr. 1) werden 200.000 € veranschlagt (siehe \"Angebot Montage.pdf\"). Dabei erfolgt die Anpassung der Einzelkomponenten: Anpassung Steuerelektronik und Anpassung der Bremsen, vgl. \"Auflistung Anpassungen.pdf\". Für die Arbeiten benötigt der Umrüster einen Techniker über 2 Monate (Lfd. 6: 15.000 €) und einem Ingenieur über 2 Monate (Lfd. 6: 35.000 €)."]